Cogmind - Beta 15 @@@ ROGUE MODE // 2025.06.05 @ 01:17:58 Player: Mogwok Wargfriend Result: Destroyed by 3L-QRB(R) with Subdweller Machine Gun Performance ------------- Evolutions (0) 0 Regions Visited (2) 400 Robots Destroyed (31) 155 Value Destroyed (560) 560 Prototype IDs (0) 0 Alien Tech Used (0) 0 Bonus (0) 0 TOTAL SCORE: 1115 Bonus ------- None Cogmind --------- Core Integrity 0/250 Matter 283/300 Energy 248/250 System Corruption 0% Temperature Cool (0) Movement Rolling (100) Location -10/Subcaves Parts ------- > --- POWER (1) -------- Ion Engine > --- PROPULSION (2) --- Compact Wheel > --- UTILITY (2) ------ Improved Heat Sink Small Storage Unit > --- WEAPON (2) ------- Medium Laser Light Assault Rifle > --- INVENTORY (8) ---- Disposable Heat Sink Seismic Detector Light Armor Plating Particle Gun Particle Gun Light Assault Rifle Scrap Shield Fragment (50) Peak State ------------ > --- POWER ------------ Subdweller Power Source > --- PROPULSION ------- Compact Wheel > --- UTILITY ---------- Improved Heat Sink Small Storage Unit > --- WEAPON ----------- Medium Laser Light Assault Rifle > --- INVENTORY -------- Ion Engine Disposable Heat Sink Seismic Detector Light Armor Plating Particle Gun Particle Gun Light Assault Rifle [Rating: 10] Favorites ----------- Power Ion Engine Engine Ion Engine Propulsion Aluminum Leg Leg Aluminum Leg Wheel Compact Wheel Utility Small Storage Unit Device Heat Sink Storage Small Storage Unit Weapon Light Assault Rifle Energy Gun Medium Laser Ballistic Gun Light Assault Rifle Build | -11 -10 -10 ------- Run | Yrd Mat Sub Slots Evolved . | . . . Power . | . . . Propulsion . | . . . Utility . | . . . Weapon . | . . . Parts Attached 21 | 8 9 4 Power 4 | 1 1 2 Engine 4 | 1 1 2 Core . | . . . Reactor . | . . . Propulsion 6 | 2 3 1 Treads . | . . . Leg 5 | 2 3 . Wheel 1 | . . 1 Hover . | . . . Flight . | . . . Utility 6 | 3 2 1 Device 5 | 2 2 1 Storage 1 | 1 . . Processor . | . . . Hackware . | . . . Protection . | . . . Artifact . | . . . Weapon 5 | 2 3 . Energy Gun 4 | 1 3 . Energy Cannon . | . . . Ballistic Gun 1 | 1 . . Ballistic Cannon . | . . . Launcher . | . . . Special Weapon . | . . . Impact Weapon . | . . . Slashing Weapon . | . . . Piercing Weapon . | . . . Special Melee Weapon . | . . . Unidentified Prototypes . | . . . Parts Lost 7 | . 4 3 Power 1 | . . 1 Propulsion 5 | . 3 2 Utility . | . . . Weapon 1 | . 1 . Highest Loss Streak 3 | . 2 3 To Critical Strikes . | . . . Average Backups 6 | 3 7 6 Power . | . 1 . Propulsion 1 | 1 1 . Utility 2 | . 2 3 Weapon 2 | . 2 3 Tool/Special . | . . . Unused Backups 7 | . 2 5 Power 1 | . 1 . Propulsion 1 | . 1 . Utility 2 | . . 2 Weapon 3 | . . 3 Tool/Special . | . . . Average Slot Usage (%) 93 | . 95 88 Engine 13 | . 13 13 Leg 21 | . 27 8 Wheel 2 | . . 9 Device 12 | . 12 14 Storage 14 | . 14 14 Energy Gun 13 | . 12 14 Ballistic Gun 13 | . 13 14 Peak Build Rating 10 | 9 9 10 Average Rating 7 | 6 7 8 On Entrance 5 | . 7 8 Naked Turns . | . . . Heaviest Build 15 | 13 15 14 Greatest Support 20 | 20 20 20 Greatest Overweight (x) 3 | . 3 . Average Overweight (x) . | . . . Largest Inventory Capacity 8 | 8 8 8 Average Capacity 7 | 7 8 8 Most Carried 8 | 5 8 8 Average Carried 6 | 3 7 7 Final Capacity 8 | 8 8 8 Final Carried 8 | 5 8 7 Class Distribution -------------------- 51% | Scavenger-Mutant 48% | Mutant Dominant Class ---------------- Scavenger-Mutant | -10/Materials Mutant | -10/Subcaves Resources | -11 -10 -10 ----------- Run | Yrd Mat Sub Matter Collected 671 | 303 279 89 Remotely . | . . . Salvage Created 972 | 168 661 143 Parts 71 | 18 40 13 Haulers Intercepted . | . . . Recyclers Shooed 6 | 1 5 . Parts Field Recycled . | . . . Retrieved Matter . | . . . Parts Self-Destructed 5 | . . 5 Prevented . | . . . Kills | -11 -10 -10 ------- Run | Yrd Mat Sub Combat Hostiles Destroyed 14 | . 11 3 Guns 14 | . 11 3 Classes Destroyed 9 | 3 4 2 Worker 6 | 2 4 . Builder 2 | . 2 . Tunneler 4 | 3 1 . Recycler 3 | 1 2 . Watcher 2 | . 2 . Swarmer 3 | . 3 . Grunt 8 | . 8 . Sentry 1 | . . 1 Subdweller 2 | . . 2 Best Kill Streak 4 | 4 4 1 Combat Bots Only 4 | . 4 1 Max Kills in Single Turn 1 | 1 1 1 Gunslinging . | . . . Exploded . | . . . Melee . | . . . Uniques/NPCs Destroyed . | . . . Combat | -11 -10 -10 -------- Run | Yrd Mat Sub Hostile Shots Fired 91 | . 57 34 Missed 23 | . 13 10 Hits 68 | . 44 24 Projectile 68 | . 44 24 Critical Strikes 5 | . 2 3 Damage Taken 1091 | . 530 561 Core 256 | . 124 132 Absorbed by Shields . | . . . Regen/Repaired (Parts) 72 | . 72 . Core Remaining (%) 100 | 100 . . Volleys Fired 124 | 23 84 17 Largest 2 | 2 2 2 Hottest 85 | 60 85 70 Shots Fired 240 | 45 161 34 Gun 240 | 45 161 34 Cannon . | . . . Launcher . | . . . Special . | . . . Kinetic 124 | 23 84 17 Thermal 110 | 22 71 17 Explosive . | . . . Electromagnetic 6 | . 6 . Robot Hit Streak 19 | 8 10 19 Robot Miss Streak 4 | 2 4 1 Penetration Max . | . . . Secondary Targets . | . . . Shots Hit Robots 141 | 25 85 31 Core Hits 58 | 10 40 8 Critical Kills . | . . . Critical Parts Destroyed . | . . . Critical Strikes 5 | . 3 2 Burn 4 | . 3 1 Destroy 1 | . . 1 Melee Attacks . | . . . Impact . | . . . Slashing . | . . . Piercing . | . . . Sneak Attacks . | . . . Combat Hostiles . | . . . Follow-up Attacks . | . . . Damage Inflicted 1643 | 256 1068 319 Guns 1640 | 256 1065 319 Cannons . | . . . Explosions . | . . . Melee . | . . . Ramming 3 | . 3 . Kinetic 623 | 113 388 122 Thermal 980 | 143 640 197 Explosive . | . . . Electromagnetic 37 | . 37 . Impact . | . . . Slashing . | . . . Piercing . | . . . Highest Corruption . | . . . Average Corruption . | . . . Corruption Purged . | . . . Corruption Blocked . | . . . Overload Shots . | . . . Overflow Damage . | . . . Projectiles . | . . . Explosions . | . . . Melee . | . . . Knockbacks . | . . . Impact . | . . . Kinetic . | . . . Secondary . | . . . Self-Inflicted Damage 1 | . 1 . Shots . | . . . Rammed 1 | . 1 . Targets Rammed 2 | . 2 . Kicked 1 | . 1 . Crushed . | . . . Highest Temperature 516 | 40 190 516 Average Temperature 53 | 21 37 237 Received Heat Transfer 1227 | . 291 936 Effects 3 | . . 3 Shutdowns 1 | . . 1 Matter Decay 1 | . . 1 Short Circuit 1 | . . 1 Siege Activations . | . . . Martial Activations . | . . . Shielding Activations . | . . . Robots Disrupted . | . . . Combat Hostiles . | . . . Robots Corrupted . | . . . Combat Hostiles . | . . . Parts Fried . | . . . Impact Corruptions . | . . . Robots Melted . | . . . Combat Hostiles . | . . . Parts Melted 4 | . 3 1 Heat Transferred 2804 | 325 1813 666 Parts Sabotaged . | . . . Parts Stolen . | . . . Parts Stripped . | . . . Power Chain Reactions . | . . . Alert | -11 -10 -10 ------- Run | Yrd Mat Sub Maximum Alert Level . | . . . Low Security (%) 100 | 100 100 . Level 1 . | . . . Level 2 . | . . . Level 3 . | . . . Level 4 . | . . . Level 5 . | . . . High Security . | . . . Max Security . | . . . Peak Influence 135 | 10 135 . Initial . | . . . Average 35 | 2 42 . Influence Increases 411 | 30 361 20 Destroy 0b10 Robot/C 240 | . 220 20 Destroy 0b10 Robot/NC 85 | 30 55 . Destroy Leader 54 | . 54 . Successful Hack 15 | . 15 . Destroy Structure 2 | . 2 . Lose Combat Pursuer 15 | . 15 . Influence Decreases 411 | 30 345 36 Entered New Map 8 | . . 8 Time Decay 373 | 30 315 28 Lost Part 30 | . 30 . Squads Dispatched 1 | . 1 . Investigation . | . . . Extermination . | . . . Reinforcement 1 | . 1 . Assault . | . . . Garrison . | . . . Intercept . | . . . Searches Triggered . | . . . Construction Impeded . | . . . Haulers Reinforced . | . . . Active Scanning Responses . | . . . Cargo Convoy Interrupts . | . . . Stealth | -11 -10 -10 --------- Run | Yrd Mat Sub Distress Signals 4 | . 4 . Communications Jammed . | . . . Distress Signals . | . . . Times Spotted 26 | . 21 5 Peak Tracking Total 4 | . 4 2 Tactical Retreats 1 | . 1 . Traps | -11 -10 -10 ------- Run | Yrd Mat Sub Traps Triggered 6 | . 6 . Indirectly . | . . . Trap Hack Attempts . | . . . Triggered . | . . . Disarmed . | . . . Reprogrammed . | . . . Reused . | . . . Traps Extracted . | . . . Installed . | . . . Triggered . | . . . Machines | -11 -10 -10 ---------- Run | Yrd Mat Sub Machines Disabled . | . . . Max in Single Turn . | . . . Machines Repaired . | . . . Machines Dismantled . | . . . Machines Sabotaged . | . . . Overloaded Fab Kills . | . . . Hacking | -11 -10 -10 --------- Run | Yrd Mat Sub Machines Accessed 10 | . 9 1 Terminals 7 | . 7 . Fabricators . | . . . Repair Stations 1 | . 1 . Recycling Units 1 | . 1 . Scanalyzers . | . . . Garrison Access . | . . . Total Hacks 28 | . 25 3 Successful 17 | . 14 3 Failed 10 | . 10 . Catastrophic . | . . . Database Lockouts 1 | . 1 . Manual 26 | . 26 . Terminals 20 | . 20 . Fabricators . | . . . Repair Stations 2 | . 2 . Recycling Units 3 | . 3 . Scanalyzers . | . . . Garrison Access . | . . . Terminal Hacks 7 | . 4 3 Record 3 | . . 3 Robot Analysis 3 | . 3 . Terminal Index 1 | . 1 . Fabricator Hacks . | . . . Repair Station Hacks 2 | . 2 . Scan Component 1 | . 1 . Repair 1 | . 1 . Recycling Unit Hacks 2 | . 2 . Report Inventory 1 | . 1 . Retrieve Components 1 | . 1 . Scanalyzer . | . . . Garrison Access Hacks . | . . . Unauthorized Hacks 6 | . 6 . Terminals 5 | . 5 . Assimilate 1 | . 1 . Botnet 3 | . 3 . Operators 1 | . 1 . Fabricators . | . . . Repair Stations . | . . . Recycling Units 1 | . 1 . Reject 1 | . 1 . Scanalyzers . | . . . Garrison Access . | . . . Data Cores Recovered . | . . . Used . | . . . Hacking Detections 7 | . 7 . Full Trace Events . | . . . Feedback Events . | . . . Feedback Blocked . | . . . Robot Schematics Acquired . | . . . Robots Built . | . . . Authchips . | . . . Time . | . . . Total Robot Build Rating . | . . . Part Schematics Acquired . | . . . Parts Built . | . . . Authchips . | . . . Time . | . . . Total Part Build Rating . | . . . Parts Repaired 1 | . 1 . Time 26 | . 26 . Parts Recycled . | . . . Recycled Matter . | . . . Retrieved Matter . | . . . Retrieved Components 9 | . 9 . Parts Scanalyzed . | . . . Part Schematics Acquired . | . . . Parts Damaged . | . . . Bothacking | -11 -10 -10 ------------ Run | Yrd Mat Sub Used RIF Installer . | . . . Robots Hacked . | . . . Non-combat . | . . . Combat . | . . . Robot Hacks Applied . | . . . Relay Couplers Released . | . . . Fabnet Peak Effective % . | . . . Robots Rewired . | . . . Allies Hacked . | . . . Hacks Repelled . | . . . Allies | -11 -10 -10 -------- Run | Yrd Mat Sub Total Allies 1 | . 1 . Largest Group 1 | . 1 1 Highest-Rated Group 10 | . 10 10 Highest-Rated Ally 10 | . 10 10 Total Orders . | . . . Ally Attacks . | . . . Total Damage . | . . . Kills . | . . . Allies Corrupted . | . . . Allies Melted . | . . . Intel | -11 -10 -10 ------- Run | Yrd Mat Sub Active Infowar (turns) 114 | 34 80 . Seismic 114 | 34 80 . Robot Analysis Total 3 | . 3 . Derelict Logs Recovered 1 | . . 1 Drone Launches . | . . . Drone Recoveries . | . . . Exploration | -11 -10 -10 ------------- Run | Yrd Mat Sub Turns Passed 1893 | 224 1157 512 Spaces Moved 1204 | 131 689 384 Core 26 | 19 7 . Treads . | . . . Legs 879 | 112 682 85 Wheels 299 | . . 299 Hover . | . . . Flight . | . . . Fastest Speed 50 | 50 100 100 Average Speed 114 | 109 120 104 Slowest Speed 200 | 120 200 120 Overloaded Moves . | . . . Propulsion Burnouts . | . . . Robots Hopped . | . . . Potential Cave-ins . | . . . Cave-ins Triggered . | . . . Exploration Rate (%) 42 | 6 92 29 Regions Visited 2 Branch Regions 1 Pre-discovered Areas 1 | . . 1 Known Exits Taken . | . . . Unknown Exits Taken 2 | 1 1 . Scrap Searched . | . . . Spaces Dug . | . . . Terrain Destroyed . | . . . Melee . | . . . Projectile . | . . . AOE . | . . . Terrain Rammed . | . . . Walls Destroyed . | . . . Machines Disabled . | . . . Actions | -11 -10 -10 --------- Run | Yrd Mat Sub Total 1501 | 167 867 467 Wait 106 | . 50 56 Move 1202 | 130 688 384 Hop . | . . . Pick Up 20 | 5 12 3 Fast Attach 25 | 7 17 1 Attach 6 | 1 3 2 Detach 1 | 1 . . Swap 3 | . 2 1 Drop 12 | . 9 3 Fire 124 | 23 84 17 Melee . | . . . Ram 1 | . 1 . Kick 1 | . 1 . Crush . | . . . Escape Stasis . | . . . Rewire . | . . . Trap . | . . . Miscellaneous . | . . . Route ------- -11/Scrapyard -10/Materials (discovered 5 exits: [*Mat x3] / [*Min] / *Sub) -10/Subcaves (discovered 2 exits: *Mat x2) History --------- Turn | Location | Event 10 | -11/Scrapyard | Discovered new exit (range 16) 225 | -11/Scrapyard | Entered Materials 302 | -10/Materials | Build established: Mutant 607 | -10/Materials | Discovered new exit (range 10) 690 | -10/Materials | Repaired Lgt. Assault Rifle 760 | -10/Materials | Discovered new exit (range 12) 1036 | -10/Materials | Discovered new exit (range 4) 1103 | -10/Materials | Build established: Scavenger-Mutant 1106 | -10/Materials | Central database locked down 1131 | -10/Materials | Discovered new exit (range 5) 1193 | -10/Materials | Discovered new exit (range 11) 1382 | -10/Materials | Entered Subcaves 1382 | -10/Subcaves | Accompanied by 1 ally 1382 | -10/Subcaves | Identified exit to Materials 1383 | -10/Subcaves | Approached by a straggling Scientist 1432 | -10/Subcaves | Discovered exit to Materials (range 14) 1499 | -10/Subcaves | Core integrity fell below 50% 1531 | -10/Subcaves | Core integrity fell below 20% 1565 | -10/Subcaves | Lost 3 parts (1p2n) 1662 | -10/Subcaves | Visited Clippyterm 1665 | -10/Subcaves | Learned location of Section 7 (-2) 1709 | -10/Subcaves | A swath of the cavern ceiling suddenly collapsed 1801 | -10/Subcaves | A swath of the cavern ceiling suddenly collapsed 1823 | -10/Subcaves | Build established: Mutant 1894 | -10/Subcaves | Destroyed by 3L-QRB(R) with Subdweller Machine Gun Last Messages --------------- >>Record! "World Domination" It looks like you're trying to take over the world, would you like help? World map updated: -2/Section 7. >>Record! "Botnets" It looks like you seek to become a more effective hacker when it comes to the important hacks, and I heartily recommend installing Trojan(Botnet) on at least one or two Terminals to improve your odds of success elsewhere. 01699_ Sub. Power Source shoots sparks and powers down. A swath of the cavern ceiling suddenly collapses. 01725_ Dropped Broken Sub. Power Source. A swath of the cavern ceiling suddenly collapses. 01855_ Technician 1a destroyed. 01893_ 3L-QRB(R) suffers critical hit (Burn). Map ----- +----------------------------------------------------+ | ??????????????????????### ## #? # ##????????? | | ????????????????????????# # ####?????? | | ????????????????????#???## ## # # ??????? | | ??????????????# ????# ???##?## # ???????? | | ???????????????# ## ??#### ## ????????? | | ????????????????# #### #? ?????????? | | ????????????????# # # % ## ??????????? | | ??????????????????# # # ## #??????????? | | ??????????????????# ##### ## ##?????????? | | ???????????????# ?????# #? #?????????? | | ???????????????# ????????## ### #??????????? | | ??????????????????????????# # #???????????? | | ?????????????????????????## #???????????? | | ?????????????????????????# # ##??????????? | | ?????????????????????????###### ####???????? | | ???????????????????????????### ##??????? | | ???????????????????????????# ### #? | | ???????????????????????????# #? | | ???????????????????????????## ## #?? | | ????????????????????????????## ## ## #?? | | ?????????????????????????????# ##?? #?? | | ????????????????????######???# ## #?? | | ???????????????????## ## ##?## #??? | | ????????????????#### ### #??? | | ???????????????## R ## ## #??? | | ???????????????# @## ###? ###??? | | ???????????????# ##### ###???? ##????? | | ???????????????# ##???### #???????#?????? | | ???????????????# ##??????## #????????????? | | ???????????????# #????????## #??????????? | | ???????????????# #?????????# ##??????????? | | ???????????????# ##?????????? #???????????? | | ???????????????# ##???????????" #???????????? | | ???????????????###????????????"" #???????????? | | ?????????????????????????????? ""#???????????? | | ?????????????????????????????? ##???????????? | | ?????????????????????????????????????????????? | | ?????????????????????????????????????????????? | | ?????????????????????????????????????????????? | | ?????????????????????????????????????????????? | | ?????????????????????????????????????????????? | | ?????????????????????????????????????????????? | | ?????????????????????????????????????????????? | | ?????????????????????????????????????????????? | | ?????????????????????????????????????????????? | | ?????????????????????????????????????????????? | | ?????????????????????????????????????????????? | | ?????????????????????????????????????????????? | | ?????????????????????????????????????????????? | | ?????????????????????????????????????????????? | +----------------------------------------------------+ Best States ------------- Heat Dissipation 39 Energy Generation 15 Energy Capacity 250 Matter Stores 300 Matter Capacity 300 Sight Range 16 Terrain Scan Density 10 Evasion (%) 55 Item Schematics ----------------- None Robot Schematics ------------------ None Fabricated ------------ Nothing Repaired ---------- Lgt. Assault Rifle | 10% | -10/Materials Alien Tech Used ----------------- None Achievements -------------- None Challenges ------------ None Game ------ Seed SpikedRapidSegregator Manual? 0 Play Time 00:18:14 Cumulative 201.1 hours Start 2025.06.05 @ 00:59:21 End 2025.06.05 @ 01:17:58 Sessions 1 Manual Loads 0 Difficulty Rogue Special Mode None Game No. 190 Rogue 190 Adventurer 0 Explorer 0 Win Type - Total 1 Types 1/0/0/0/0/0/0/0/0/0 Lore% 42 Gallery% 57 Achievement% 46 Wizard Run 0 Options --------- Layout 2 ASCII 1 Keyboard 1 Movement Numpad Keybinds 0 Fullscreen 2 Font 32/TamsynBold Map View 50x44 Zoom Use 0% Tactical HUD 1 Map Filters NONE Filters NONE Steam 1 RUN: b961516b-7fc8-48ae-b8a5-087843fe54df